bitfinex/quotes_ETHUSD_20241122
["timestamp","ask_amount","ask_price","bid_price","bid_amount"]
[1732292084138,0.0379843,3291.2,3290.4,0.3027]
[1732292084465,0.7818,3291.1,3290.4,0.3027]
[1732292087149,0.7886,3290.9,3290.5,0.3027]
[1732292088149,0.7886,3290.9,3290.2,0.3027]
[1732292088347,0.7742,3290.7,3290.2,0.3027]
[1732292088549,0.03799088,3290.6,3290.2,0.3027]
[1732292089234,0.7742,3290.7,3290.3,0.3027]
[1732292089841,0.03799078,3290.6,3289.8,0.3029]
[1732292090042,0.7877,3290.5,3289.8,0.3029]
[1732292090953,0.7877,3290.5,3289.9,0.3029]
[1732292092031,0.7877,3290.5,3289.3,0.7799]
[1732292092032,0.7877,3290.5,3290.1,0.3029]
[1732292092913,0.7877,3290.5,3289.6,0.3029]
[1732292093510,0.7877,3290.5,3289.8,0.3029]
[1732292094025,0.7877,3290.5,3290.0,0.3029]
[1732292095249,0.7877,3290.5,3289.6,0.3029]
[1732292095429,0.7877,3290.5,3289.8,0.3029]
[1732292096518,0.7877,3290.5,3289.9,0.3029]
[1732292097552,0.7877,3290.5,3289.6,0.3029]
[1732292097738,0.7877,3290.5,3289.8,0.3029]
[1732292098855,0.7877,3290.5,3289.9,0.3029]
[1732292099054,0.8228,3290.3,3289.9,0.3029]
[1732292099250,0.03799429,3290.2,3289.9,0.3029]
[1732292099838,0.03799429,3290.2,3289.6,0.3029]
[1732292100655,0.8228,3290.3,3289.6,0.3029]
[1732292100863,0.8228,3290.3,3289.8,0.3029]
[1732292101439,0.03799472,3290.2,3289.8,0.3029]
[1732292101632,0.03488208,3290.2,3289.8,0.3029]
[1732292101832,0.03488208,3290.2,3289.4,0.3029]
[1732292102048,0.03488208,3290.2,3289.4,0.6029]
[1732292102248,0.8228,3290.3,3289.4,0.3029]
[1732292102448,0.8228,3290.3,3289.0,0.7822]
[1732292102449,0.8228,3290.3,3289.6,0.3029]
[1732292102922,0.8228,3290.3,3289.8,0.3029]
[1732292103146,0.8228,3290.3,3290.0,0.3029]
[1732292104124,0.8228,3290.3,3289.8,0.3029]
[1732292104344,0.8228,3290.3,3290.0,0.3029]
[1732292106058,0.8228,3290.3,3289.7,0.7848]
[1732292106059,0.7826,3291.3,3290.2,0.3029]
[1732292106374,0.7826,3291.3,3289.7,0.7848]
[1732292106375,0.7826,3291.3,3290.6,0.3029]
[1732292106656,0.03487094,3291.2,3290.6,0.3029]
[1732292107340,0.7826,3291.1,3290.7,0.3029]
[1732292107865,0.03487413,3291.0,3290.7,0.3029]
[1732292109169,0.7721,3290.9,3290.7,0.3029]
[1732292109374,0.7721,3290.9,3290.0,0.3029]
[1732292109527,0.7721,3290.9,3290.2,0.3029]
[1732292109734,0.7721,3290.9,3290.6,0.3029]
[1732292110072,0.03487504,3292.0,3290.7,0.8529]
[1732292110073,0.8042,3291.9,3290.7,0.8529]
[1732292110231,0.8042,3291.7,3290.7,0.8529]
[1732292110445,0.03486885,3291.6,3290.7,0.8529]
[1732292110742,0.03486885,3291.6,3290.5,0.55]
[1732292110963,0.03486885,3291.6,3290.6,0.46967]
[1732292112032,0.8042,3291.7,3290.6,0.46967]
[1732292112033,0.8042,3291.7,3290.7,0.8529]
[1732292112234,0.03486762,3291.6,3290.7,0.55]
[1732292112440,0.7897,3291.5,3290.6,0.16677]
[1732292112735,0.03486874,3291.4,3290.5,0.55]
[1732292112934,0.8141,3291.3,3290.5,0.55]
[1732292113134,0.03487105,3291.2,3290.5,0.55]
[1732292113358,0.03487105,3291.2,3290.6,0.38529]
[1732292113544,0.03487105,3291.2,3290.5,0.55]
[1732292113860,0.8141,3291.3,3290.5,0.55]
[1732292114235,0.8141,3291.3,3290.4,3.3029]
[1732292114447,0.8141,3291.3,3290.5,0.38529]
[1732292114648,0.8141,3291.3,3290.5,3.38529]
[1732292114873,0.8141,3291.3,3290.6,0.55]
[1732292115074,0.8141,3291.3,3290.6,0.8529]
[1732292115571,0.8141,3291.3,3290.6,0.3029]
[1732292115781,0.8141,3291.3,3290.7,0.33029]
[1732292116743,0.8141,3291.3,3290.6,0.55]
[1732292116941,0.8141,3291.3,3290.6,0.8529]
[1732292117141,0.8141,3291.3,3290.8,0.3029]
[1732292117394,0.03487026,3292.3,3290.7,0.8206]
[1732292117395,0.792,3292.2,3290.9,0.8529]
[1732292117546,0.792,3292.0,3290.9,0.8529]
[1732292117749,0.792,3291.8,3290.9,0.47025]
[1732292117949,0.792,3291.6,3290.9,0.3029]
[1732292118260,0.03486876,3291.5,3290.9,0.3029]
[1732292119597,0.03486876,3291.5,3290.7,0.3029]
[1732292119743,0.03486876,3291.5,3290.7,0.6579]
[1732292120386,0.03486876,3291.5,3290.7,0.3029]
[1732292120566,0.792,3291.6,3290.7,0.3029]
[1732292120878,0.792,3291.6,3290.9,0.3029]
[1732292121547,0.03486598,3291.5,3290.9,0.3029]
[1732292121748,0.7815,3291.4,3290.7,0.3029]
[1732292121973,0.03486874,3291.3,3290.7,0.3029]
[1732292122159,0.7815,3291.4,3290.7,0.3029]
[1732292122160,0.7815,3291.4,3290.7,0.68819]
[1732292123264,0.7815,3291.4,3290.7,0.3029]
[1732292125254,0.7815,3291.4,3290.6,0.55]
[1732292125255,0.7815,3291.4,3290.9,0.3029]
[1732292127292,0.7815,3291.4,3290.7,0.3029]
[1732292127473,0.7815,3291.4,3290.9,0.3029]
[1732292128450,0.7815,3291.4,3290.7,0.3029]
[1732292129100,0.79206869,3291.3,3290.7,0.3029]
[1732292129452,0.79206869,3291.3,3290.1,0.3029]
[1732292130288,0.7572,3291.3,3290.1,0.3029]
[1732292130464,0.03487248,3291.2,3290.3,0.3029]
[1732292131090,0.7572,3291.3,3290.3,0.3029]
[1732292131269,0.03487247,3291.2,3290.5,0.3029]
[1732292131581,0.01,3292.7,3290.5,0.3029]
[1732292131582,0.771,3291.1,3290.5,0.3029]
[1732292131759,2.79928141,3291.9,3290.5,0.3029]
[1732292131760,0.7811,3290.9,3290.5,0.3029]
[1732292131959,0.7811,3290.7,3290.5,0.3029]
[1732292132280,0.7811,3290.5,3289.5,0.3029]
[1732292133582,0.7811,3290.5,3289.7,0.3029]
[1732292133784,0.7811,3290.5,3289.9,0.3029]
[1732292134459,0.8261,3291.6,3290.3,0.3029]
[1732292134803,0.8261,3291.4,3290.3,0.3029]
[1732292135093,0.8261,3291.4,3290.5,0.3029]
[1732292135460,0.03487113,3291.3,3290.5,0.3029]
[1732292135972,0.03487116,3291.3,3290.5,0.3029]
[1732292136373,0.8261,3291.4,3290.5,0.3029]
[1732292136574,0.8261,3291.4,3290.4,3.0]
[1732292136575,0.8261,3291.4,3290.6,0.3029]
[1732292136879,0.81398973,3291.4,3290.8,0.3029]
[1732292137588,0.03486987,3291.3,3290.8,0.3029]
[1732292137890,2.79928141,3291.7,3290.2,0.3029]
[1732292138198,0.03487595,3291.6,3290.2,0.3029]
[1732292138556,0.03487595,3291.6,3289.1,0.8093]
[1732292138977,2.79928141,3291.4,3289.2,0.3029]
[1732292139305,0.31480767,3291.3,3289.2,0.3029]
[1732292139896,0.03487953,3291.3,3289.4,0.3029]
[1732292140197,0.78687941,3291.2,3289.6,0.3029]
[1732292140493,0.78687941,3291.2,3289.8,0.3029]
[1732292142163,0.78687941,3291.2,3289.7,0.3029]
[1732292142361,0.752,3291.2,3289.9,0.3029]
[1732292142686,0.03487645,3291.1,3290.3,0.3029]
[1732292143209,0.752,3291.2,3290.3,0.3029]
[1732292143360,0.0348727,3291.1,3290.3,0.3029]
[1732292143562,0.7524,3291.0,3290.3,0.3029]
[1732292143893,0.81557652,3290.9,3289.9,0.3029]
[1732292144600,0.7807,3290.9,3290.1,0.3029]
[1732292146873,0.79337461,3290.8,3290.2,0.3029]
[1732292147272,0.79337461,3290.8,3289.9,0.3029]
[1732292148876,0.79337461,3290.8,3289.5,0.3029]
[1732292150083,0.79337461,3290.8,3289.3,0.3029]
[1732292150284,0.79337461,3290.8,3289.6,0.3029]
[1732292150679,0.79337461,3290.8,3288.8,0.3029]
[1732292151811,0.79337461,3290.8,3289.0,0.3029]
[1732292151982,0.79337461,3290.8,3289.2,0.3029]
[1732292152309,0.79337461,3290.8,3289.4,0.3029]
[1732292152674,0.79337461,3290.8,3289.4,1.111]
[1732292152969,0.79337461,3290.8,3289.1,0.34981586]
[1732292152970,0.86768146,3290.7,3289.7,0.3029]
[1732292153926,0.86768146,3290.7,3289.5,0.3029]
[1732292155033,0.86768146,3290.7,3289.3,0.3029]
[1732292155198,0.86768146,3290.7,3289.3,0.6029]
[1732292155412,0.86768146,3290.7,3289.3,0.3029]
[1732292156004,0.86768146,3290.7,3289.0,0.8081]
[1732292156005,0.8328,3290.7,3289.5,0.3029]
[1732292156202,3.0,3291.4,3289.6,0.3029]
[1732292156203,0.8161,3290.5,3289.6,0.3029]
[1732292159289,0.8161,3290.5,3289.8,0.3029]
[1732292160430,0.8161,3290.5,3289.9,0.3029]
[1732292161428,0.03487735,3290.4,3289.7,0.3029]
[1732292161628,0.7942,3290.3,3289.7,0.3029]
[1732292161839,0.03488216,3290.2,3289.7,0.3029]
[1732292162007,0.7645,3290.1,3289.7,0.3029]
[1732292162215,0.03488473,3290.0,3289.7,0.3029]
[1732292162397,0.7602,3289.9,3289.4,0.3029]
[1732292162599,0.7602,3289.9,3289.4,0.63319]
[1732292162797,0.7602,3289.9,3289.4,0.3029]
[1732292163533,0.7602,3289.9,3289.5,0.3029]
[1732292163899,0.74219994,3289.9,3289.5,0.3029]
[1732292164209,0.74036122,3289.9,3289.5,0.3029]
[1732292164519,0.74036122,3289.9,3289.2,0.3029]
[1732292164724,0.74036122,3289.9,3289.4,0.3029]
[1732292165527,0.74036098,3289.9,3289.4,0.3029]
[1732292166347,0.03488303,3291.3,3289.6,0.3029]
[1732292166505,8.79,3293.1,3289.5,0.8321]
[1732292166506,0.03487325,3291.8,3290.1,1.135]
[1732292166844,0.29092814,3292.7,3290.3,0.3029]
[1732292166845,2.79928141,3292.0,3290.3,0.3029]
[1732292167148,0.03487426,3291.9,3290.3,0.3029]
[1732292167866,3.03487426,3291.9,3290.1,0.3029]
[1732292168006,0.58341557,3291.8,3290.1,0.3029]
[1732292168353,0.03487641,3291.7,3290.1,0.3029]
[1732292168639,0.7924,3291.6,3290.1,0.3029]
[1732292168838,0.58341557,3291.8,3289.9,0.3029]
[1732292168839,0.7924,3291.4,3289.9,0.3029]
[1732292169038,0.7924,3291.2,3290.1,0.3029]
[1732292169338,0.03798702,3291.1,3290.3,0.3029]
[1732292169706,0.8124,3291.0,3290.3,0.3029]
[1732292170020,0.8124,3290.8,3290.3,0.30169346]
[1732292170223,0.8124,3290.8,3289.8,3.30048692]
[1732292171044,0.8124,3290.8,3289.8,0.30048692]
[1732292171518,0.8124,3290.8,3289.8,3.30048692]
[1732292171718,0.8124,3290.8,3290.0,0.30048692]
[1732292172371,0.83228929,3290.7,3290.0,0.30048692]
[1732292172547,0.83228929,3290.7,3288.7,0.34139536]
[1732292172548,0.83228929,3290.7,3290.1,0.30048692]
[1732292173681,0.83228929,3290.7,3289.3,0.30048692]
[1732292173895,0.83228929,3290.7,3289.6,0.30048692]
[1732292175288,0.7943,3290.7,3289.6,0.30048692]
[1732292175441,0.7943,3290.7,3289.8,0.30048692]
[1732292175648,0.8269,3290.5,3289.8,0.30048692]
[1732292175844,0.03799319,3290.4,3289.8,0.30048692]
[1732292176382,0.8269,3290.5,3289.7,0.30048692]
[1732292177465,0.8269,3290.5,3289.5,0.30048692]
[1732292177655,0.8269,3290.5,3289.7,0.30048692]
[1732292177859,0.8269,3290.5,3289.4,0.55]
[1732292177860,0.8269,3290.5,3290.1,0.30048692]
[1732292178557,0.8164,3291.4,3290.5,0.30048692]
[1732292178758,0.0379826,3291.3,3290.5,0.30048692]
[1732292178957,0.829,3291.2,3290.5,0.30048692]
[1732292179373,0.03798514,3291.1,3290.5,0.30048692]
[1732292179568,0.829,3291.9,3289.9,0.55]
[1732292179812,0.03798698,3292.0,3290.0,0.30048692]
[1732292179813,0.7812,3291.7,3290.0,0.30048692]
[1732292180119,0.7812,3291.5,3290.2,0.30048692]
[1732292180319,0.7812,3291.3,3290.2,0.30048692]
[1732292180500,0.03798491,3291.2,3290.2,0.30048692]
[1732292180694,0.7812,3291.3,3290.2,0.30048692]
[1732292181023,0.7812,3291.3,3290.4,0.30048692]
[1732292182023,0.7812,3291.3,3290.5,0.85048692]
[1732292182899,0.7812,3291.3,3290.5,0.46134561]
[1732292183089,0.0379832,3291.2,3290.3,0.30048692]
[1732292183288,0.7812,3291.3,3290.3,0.30048692]
[1732292184023,0.7812,3291.3,3290.5,0.8259]
[1732292184226,0.7812,3291.3,3290.6,0.55]
[1732292184533,0.03798432,3292.0,3290.6,0.55]
[1732292184534,0.8239,3291.9,3290.9,0.30048692]
[1732292185030,0.03797809,3291.8,3290.9,0.30048692]
[1732292185416,0.03797809,3291.8,3290.8,0.85048692]
[1732292188231,0.8239,3291.9,3291.0,0.30048692]
[1732292188420,0.03797604,3291.8,3291.0,0.30048692]
[1732292188747,0.03797604,3291.8,3291.2,0.30048692]
[1732292189715,0.03797604,3291.8,3291.0,0.30048692]
[1732292189918,0.8239,3291.9,3291.2,0.30048692]
[1732292192167,0.8158,3292.2,3291.3,0.55]
[1732292192340,0.03797222,3292.1,3291.2,0.30048692]
[1732292192654,0.7645,3292.0,3291.2,0.30048692]
[1732292192955,0.03797605,3291.9,3291.0,0.30048692]
[1732292193140,0.03797605,3291.9,3291.2,0.30048692]
[1732292194157,0.7645,3291.8,3291.2,0.30048692]
[1732292194557,0.03798131,3291.7,3291.2,0.30048692]
[1732292194797,0.7645,3291.8,3291.2,0.30048692]
[1732292195647,0.7645,3291.8,3290.8,0.7919]
[1732292195852,0.03797618,3291.7,3290.9,0.30048692]
[1732292196348,0.7645,3291.8,3290.9,0.30048692]
[1732292196569,0.03798157,3291.7,3290.9,0.30048692]
[1732292196956,0.03798157,3291.7,3290.8,0.7919]
[1732292197489,0.8202,3291.6,3290.6,0.8529]
[1732292197649,0.03798184,3291.5,3290.6,0.8529]
[1732292198054,0.03798184,3291.5,3290.6,1.31734]
[1732292198254,0.03798184,3291.5,3290.6,0.8529]
[1732292199566,0.03798154,3291.5,3290.6,0.8529]
[1732292200666,0.03798154,3291.5,3290.6,0.3029]
[1732292200995,0.03798154,3291.5,3289.1,3.0]
[1732292200996,0.7541,3291.4,3289.8,1.1321]
[1732292201289,0.03798555,3291.3,3290.0,0.3029]
[1732292201465,0.7655,3291.2,3290.0,0.3029]
[1732292201662,0.03798837,3291.1,3290.0,0.3029]
[1732292202167,0.03798837,3291.1,3289.9,0.3029]
[1732292202604,0.7856,3291.0,3289.9,0.3029]
[1732292202791,0.03799166,3290.9,3289.9,0.3029]
[1732292204584,0.8178,3290.8,3289.9,0.3029]
[1732292204817,0.0379923,3290.7,3289.5,0.3029]
[1732292205024,0.7895,3290.6,3289.7,0.3029]
[1732292205183,0.03799384,3290.5,3289.7,0.3029]
[1732292205381,0.7895,3290.4,3289.7,0.3029]
[1732292205584,0.7895,3290.4,3288.5,0.40169372]
[1732292205585,0.03799755,3290.3,3288.5,0.40169372]
[1732292205781,0.03799755,3290.3,3289.0,0.3029]
[1732292205983,0.03799808,3290.3,3289.0,0.3029]
[1732292206591,0.03799808,3290.3,3289.3,3.3029]
[1732292206793,0.7895,3290.4,3289.5,0.7566]
[1732292207022,0.7895,3290.4,3289.6,0.55]
[1732292207186,0.7759,3290.7,3289.6,0.55]
[1732292207386,0.03799013,3290.6,3289.6,0.55]
[1732292207893,0.03799013,3290.6,3289.7,0.16095]
[1732292208309,0.7759,3290.7,3289.7,0.16095]
[1732292208628,0.03799473,3290.6,3289.7,0.16095]
[1732292208922,0.7759,3290.7,3289.7,0.16095]
[1732292209126,0.03799473,3290.6,3289.7,0.16095]
[1732292210305,0.7759,3290.7,3289.7,0.16095]
[1732292210508,0.7759,3290.7,3289.8,0.55]
[1732292211154,0.03799082,3290.6,3289.8,0.55]
[1732292211356,0.7759,3290.7,3289.8,0.55]
[1732292211847,0.03799082,3290.6,3289.8,0.55]
[1732292212345,0.7759,3290.7,3289.8,0.55]
[1732292212845,0.7759,3290.7,3290.0,0.55]
[1732292213849,0.8266,3291.3,3290.0,0.55]
[1732292214055,0.03798721,3291.2,3290.1,0.16137]
[1732292214257,0.8266,3291.3,3290.2,0.55]
[1732292214754,0.8266,3291.3,3290.4,0.55]
[1732292215060,0.31626187,3292.9,3290.4,0.55]
[1732292215061,2.79928141,3292.4,3290.4,0.55]
[1732292215263,11.20497141,3294.2,3290.9,1.3549]
[1732292215264,1.1443071,3292.3,3290.9,1.3549]
[1732292215469,0.8264,3292.3,3291.1,0.8529]
[1732292215767,0.7792,3293.2,3291.4,0.8231]
[1732292215928,0.03797094,3293.1,3291.5,0.55]
[1732292216520,0.01,3294.1,3291.4,0.8231]
[1732292216521,0.7853,3293.6,3292.2,3.0]
[1732292216769,0.7853,3293.6,3292.3,0.55]
[1732292216915,0.7853,3293.6,3292.5,0.55]
[1732292217120,0.7853,3293.6,3292.5,0.96]
[1732292217359,0.7853,3293.6,3292.5,0.55]
[1732292217921,0.03796044,3293.5,3292.5,0.55]
[1732292218273,0.7853,3293.6,3292.5,0.55]
[1732292218772,0.7823,3294.1,3292.7,0.55]
[1732292219265,0.03795466,3294.8,3292.9,0.55]
[1732292219470,0.7823,3294.7,3292.9,0.55]
[1732292219625,0.03794939,3294.6,3292.9,0.55]
[1732292219821,0.03794939,3294.6,3293.0,3.0]
[1732292220058,0.03794939,3294.6,3293.2,0.55]
[1732292220262,0.03794939,3294.6,3292.8,0.7867]
[1732292220263,0.03794939,3294.6,3292.9,0.55]
[1732292220723,0.03794939,3294.6,3292.8,0.7867]
[1732292220724,0.03794939,3294.6,3293.1,0.55]
[1732292220972,0.03795191,3294.5,3293.1,0.55]
[1732292221173,0.7823,3294.7,3293.3,0.55]
[1732292221883,0.03794444,3294.6,3293.4,0.7829]
[1732292222042,0.7823,3294.7,3293.5,0.55]
[1732292222759,0.7885,3295.2,3293.7,0.55]
[1732292222954,0.7885,3295.2,3293.8,0.7829]
[1732292223140,0.03793917,3295.5,3294.1,0.55]
[1732292223341,0.4,3295.9,3293.7,1.00695123]
[1732292223342,0.4,3295.9,3294.4,0.7829]
[1732292223664,4.0,3296.0,3294.7,0.55]
[1732292223866,4.0,3296.0,3295.1,0.55]
[1732292224765,0.03792679,3295.9,3295.1,0.55]
[1732292224964,0.40379268,3295.8,3295.1,0.55]
[1732292225290,4.0,3296.0,3295.1,0.55]
[1732292225641,4.0,3296.0,3295.1,3.55]
[1732292225842,4.0,3296.0,3295.1,0.55]
[1732292226340,4.0,3296.0,3295.1,3.55]
[1732292226566,4.0,3296.0,3295.1,0.55]
[1732292226770,4.0,3296.0,3295.1,3.55]
[1732292226946,4.0,3296.0,3295.3,0.55]
[1732292227374,4.0,3296.0,3295.1,3.55]
[1732292228277,4.0,3296.0,3295.1,0.55]
[1732292228476,4.0,3296.0,3295.1,3.55]
[1732292228958,4.0,3296.0,3295.1,0.55]
[1732292229452,4.0,3296.0,3295.1,3.55]
[1732292229662,4.0,3296.0,3295.2,0.43329]
[1732292229854,4.0,3296.0,3295.3,0.55]
[1732292230298,4.0,3296.0,3295.0,0.7829]
[1732292230299,4.0,3296.0,3295.1,0.55]
[1732292230453,4.0,3296.0,3295.1,3.55]
[1732292230657,0.03792549,3295.9,3295.0,0.7829]
[1732292231381,4.0,3296.0,3295.0,0.7829]
[1732292231583,4.0,3296.0,3295.1,0.45695123]
[1732292231771,4.0,3296.0,3295.2,0.827]
[1732292232090,4.0,3296.0,3295.7,0.55]
[1732292232337,4.0,3296.0,3295.9,0.55]
[1732292232466,4.0,3296.0,3295.9,4.3013]
[1732292232667,3.9130958,3296.0,3295.9,4.3013]
[1732292232962,3.9130958,3296.0,3295.9,1.3013]
[1732292233182,3.82540303,3296.0,3295.9,1.3013]
[1732292233772,3.82540303,3296.0,3295.9,0.7513]
[1732292234494,3.82540303,3296.0,3295.9,1.3013]
[1732292234656,3.82540303,3296.0,3295.9,0.7513]
[1732292234865,3.82540303,3296.0,3295.6,3.781]
[1732292235161,3.82540303,3296.0,3294.1,0.01]
[1732292235162,3.82540303,3296.0,3294.3,0.781]
[1732292235568,0.03792743,3295.9,3294.3,0.781]
[1732292235772,0.8186,3295.8,3294.4,0.3029]
[1732292236384,0.8186,3295.8,3294.6,0.3029]
[1732292236785,0.0379291,3295.7,3294.6,0.3029]
[1732292237091,0.8186,3295.8,3294.6,0.3029]
[1732292238191,0.8186,3295.8,3294.8,0.3029]
[1732292238395,0.8186,3295.8,3295.0,0.3029]
[1732292239388,0.03792913,3295.7,3295.0,0.3029]
[1732292239596,0.03792913,3295.7,3294.7,0.8529]
[1732292239794,0.8186,3295.8,3294.7,0.8529]
[1732292240724,0.03793185,3295.7,3294.7,0.8529]
[1732292241034,0.8186,3295.8,3294.7,0.8529]
[1732292242001,0.03793017,3295.7,3294.7,0.8529]
[1732292242392,0.03793018,3295.7,3294.7,0.8529]
[1732292242821,0.0379327,3295.7,3294.7,0.8529]
[1732292243022,0.8186,3295.8,3294.7,0.8529]
[1732292243730,0.03793269,3295.7,3294.6,0.3029]
[1732292243931,0.03793269,3295.7,3294.6,0.68142]
[1732292244233,0.03793269,3295.7,3292.5,3.10553219]
[1732292244234,0.8332,3295.6,3293.9,1.211754]
[1732292244391,3.38491604,3295.4,3293.9,0.1972754]
[1732292244594,3.38491604,3295.4,3292.2,0.00917152]
[1732292244595,0.7929,3295.2,3293.3,0.761]
[1732292244918,3.7929,3294.9,3292.9,0.761]
[1732292245240,0.7929,3294.7,3292.9,1.0639]
[1732292245391,3.0,3294.9,3292.9,1.0639]
[1732292245392,0.7929,3294.5,3292.9,1.0639]
[1732292245728,0.7776,3294.3,3292.9,0.761]
[1732292246435,0.03681858,3294.2,3292.9,0.761]
[1732292247109,0.03681858,3294.2,3292.9,3.761]
[1732292247311,0.81441858,3294.3,3293.1,0.55]
[1732292247513,0.7776,3294.3,3293.0,0.55]
[1732292249338,0.03681579,3294.2,3293.0,0.55]
[1732292249540,0.7776,3294.3,3293.0,0.55]
[1732292250734,0.7511,3295.6,3293.2,0.55]
[1732292250943,0.78790607,3295.5,3293.2,0.55]
[1732292252905,0.78790607,3295.5,3293.4,3.0]
[1732292253116,0.78790607,3295.5,3293.6,0.55]
[1732292254607,0.78790607,3295.5,3293.1,0.7576]
[1732292254812,0.78790607,3295.5,3293.2,0.55]
[1732292255032,0.786,3295.3,3293.2,0.55]
[1732292255238,0.786,3295.1,3293.1,0.7576]
[1732292255424,0.786,3294.9,3292.6,0.8191]
[1732292255757,0.4170916,3295.2,3292.6,0.8191]
[1732292255758,0.786,3294.7,3292.7,0.16043]
[1732292255919,0.4170916,3295.2,3292.7,0.16043]
[1732292255920,0.786,3294.5,3292.7,0.16043]
[1732292256258,0.8228172,3294.4,3292.8,0.3029]
[1732292257036,0.8228172,3294.4,3293.0,0.3029]
[1732292257244,0.786,3294.4,3293.0,0.3029]
[1732292257754,3.38491604,3295.0,3293.0,0.3029]
[1732292257755,0.786,3294.2,3293.0,0.3029]
[1732292257922,0.786,3294.0,3293.0,0.3029]
[1732292258263,0.786,3293.8,3292.3,0.3029]
[1732292258558,0.786,3293.8,3292.3,1.122]
[1732292259258,0.786,3293.8,3292.7,0.3029]
[1732292259423,0.786,3293.8,3292.9,0.3029]
[1732292259624,0.786,3293.8,3292.4,0.55]
[1732292259625,0.786,3293.8,3293.1,0.3029]
[1732292260761,3.03353,3296.5,3293.6,0.3029]
[1732292260762,0.03795191,3294.8,3293.6,0.3029]
[1732292261062,0.8254,3294.7,3293.6,0.3029]
[1732292261236,0.8254,3294.7,3293.8,0.3029]
[1732292261435,0.8254,3294.7,3294.0,0.3029]
[1732292262362,0.8254,3294.7,3293.4,0.3029]
[1732292262562,0.8254,3294.7,3293.2,0.7592]
[1732292262563,0.8254,3294.7,3293.6,0.3029]
[1732292262765,0.8254,3294.7,3293.8,0.3029]
[1732292263665,0.8254,3294.7,3293.2,0.7592]
[1732292263666,0.8254,3294.7,3293.5,0.3029]
[1732292263960,0.8254,3294.7,3293.7,0.3029]
[1732292264664,0.8254,3294.7,3293.9,0.3029]
[1732292265765,3.3825403,3295.9,3293.2,0.7592]
[1732292265766,0.8184,3294.5,3293.7,0.3029]
[1732292265928,0.0379458,3294.4,3293.7,0.3029]
[1732292266136,0.8184,3294.5,3293.7,0.3029]
[1732292266860,0.8184,3294.5,3293.2,0.7592]
[1732292266861,0.8184,3294.5,3293.5,0.3029]
[1732292267237,0.8184,3294.5,3293.7,0.3029]
[1732292267432,0.8184,3294.5,3293.9,0.3029]
[1732292267868,0.8184,3294.5,3294.1,0.3029]
[1732292268166,0.8184,3294.5,3294.3,0.3029]
[1732292268767,0.753,3295.5,3294.3,0.3029]
[1732292268937,0.753,3295.3,3294.1,0.3029]
[1732292269139,0.7524,3295.1,3294.3,0.3029]
[1732292269345,0.37674563,3295.7,3294.3,0.3029]
[1732292269346,0.03793927,3295.0,3294.3,0.3029]
[1732292269567,0.7524,3294.9,3294.3,0.3029]
[1732292270003,0.79034053,3294.8,3294.3,0.3029]
[1732292270294,0.79034053,3294.8,3293.8,0.55]
[1732292270295,0.7524,3294.8,3293.9,0.3029]
[1732292273979,0.7524,3294.8,3294.1,0.3029]
[1732292274206,0.76,3295.7,3294.3,0.3029]
[1732292274502,6.62138956,3296.0,3294.4,0.3029]
[1732292274503,0.03793663,3295.6,3294.4,0.3029]
[1732292274673,0.76,3295.5,3294.4,0.3029]
[1732292274873,0.03793666,3295.4,3294.4,0.3029]
[1732292275302,0.03793666,3295.4,3294.5,0.3029]
[1732292275600,0.7557,3295.3,3294.5,0.3029]
[1732292275799,0.03793743,3295.2,3294.5,0.3029]
[1732292277300,3.82540303,3296.0,3294.7,0.3029]
[1732292277301,0.7877,3295.9,3294.7,0.3029]
[1732292277497,0.7877,3295.9,3294.6,3.0]
[1732292277498,0.7877,3295.9,3294.9,1.102]
[1732292278103,0.7877,3295.9,3295.3,0.3029]
[1732292279184,0.7877,3295.9,3295.2,0.3029]
[1732292280072,0.7877,3295.9,3295.3,0.3029]
[1732292280810,0.7877,3295.9,3295.0,0.55]
[1732292281017,0.82562755,3295.9,3295.0,3.55]
[1732292281305,0.82562701,3295.9,3295.2,0.55]
[1732292281511,0.82562726,3295.9,3295.2,0.55]
[1732292281809,0.7877,3295.9,3295.1,0.43491]
[1732292282013,0.82562941,3295.9,3295.2,0.343491]
[1732292282216,0.82562941,3295.9,3294.9,0.7991]
[1732292282711,0.82562941,3295.9,3294.8,0.55]
[1732292283608,0.7877,3295.9,3294.8,0.55]
[1732292283913,0.7877,3295.9,3295.0,0.55]
[1732292284073,0.7877,3295.9,3294.8,0.55]
[1732292284810,3.82540303,3296.0,3295.1,0.55]
[1732292285232,3.82540303,3296.0,3295.0,0.55]
[1732292285426,3.82540303,3296.0,3295.0,3.55]
[1732292285628,0.03792729,3295.9,3295.2,0.55]
[1732292286037,0.03792729,3295.9,3295.1,0.43007]
[1732292286336,3.82540303,3296.0,3295.1,0.43007]
[1732292286507,3.82540303,3296.0,3295.2,0.55]
[1732292287140,3.82540303,3296.0,3295.0,0.55]
[1732292287318,3.82540303,3296.0,3295.1,3.0]
[1732292287524,3.82540303,3296.0,3295.2,0.355]
[1732292287731,3.82540303,3296.0,3295.2,3.0]
[1732292287895,3.82540303,3296.0,3295.4,0.7731]
[1732292289044,0.7871,3295.8,3294.7,0.8231]
[1732292290119,0.82503184,3295.8,3294.7,0.8231]
[1732292290320,0.7871,3295.8,3294.7,0.8231]
[1732292290829,0.03793393,3295.7,3294.8,3.0]
[1732292291042,0.03793393,3295.7,3294.8,0.38231]
[1732292291235,0.82503382,3295.8,3294.8,0.38231]
[1732292291551,0.82503382,3295.8,3294.1,0.7521]
[1732292292964,0.7871,3295.8,3294.2,0.7916]
[1732292293259,0.7871,3295.8,3294.4,3.7916]